bitfinex-derivatives/quotes_BTCF0:USTF0_20210111
["timestamp","ask_amount","ask_price","bid_price","bid_amount"]
[1610344238037,6.12562608,34902.0,34888.0,1.0]
[1610344238436,6.12562608,34902.0,34875.0,1.0]
[1610344238836,0.0851,34901.0,34873.0,1.0]
[1610344239037,0.0851,34900.0,34873.0,1.0]
[1610344239236,0.0851,34900.0,34866.0,1.0]
[1610344239437,0.19524,34900.0,34866.0,1.0]
[1610344239940,0.13632608,34867.0,34850.0,4.2508]
[1610344240341,0.09068,34880.0,34866.0,1.0]
[1610344240939,0.09068,34880.0,34863.0,0.07545]
[1610344241340,0.0855,34885.0,34863.0,0.07545]
[1610344241539,0.0855,34885.0,34867.0,1.0]
[1610344241740,0.13632608,34868.0,34867.0,1.0]
[1610344241940,0.07769,34888.0,34863.0,0.07545]
[1610344242341,2.87683554,34918.0,34864.0,1.0]
[1610344242741,2.87683554,34918.0,34865.0,1.0]
[1610344243142,3.327,34906.0,34864.0,1.0]
[1610344243342,3.327,34906.0,34863.0,0.07545]
[1610344243343,0.08854,34900.0,34863.0,0.07545]
[1610344243542,0.08854,34900.0,34866.0,1.0]
[1610344243742,0.13632608,34876.0,34872.0,0.13632608]
[1610344244143,0.13632608,34876.0,34873.0,1.0]
[1610344244343,0.13632608,34876.0,34873.0,1.10025]
[1610344244544,0.08854,34900.0,34873.0,0.10025]
[1610344244744,0.08854,34900.0,34874.0,1.0]
[1610344244945,3.327,34906.0,34874.0,1.0]
[1610344245145,3.327,34906.0,34875.0,1.0]
[1610344245746,0.13632608,34884.0,34880.0,0.13632608]
[1610344245945,3.327,34906.0,34880.0,0.13632608]
[1610344246149,3.327,34906.0,34880.0,0.21330608]
[1610344246347,1.0,34903.0,34885.0,1.0]
[1610344247148,0.9954,34903.0,34885.0,1.0]
[1610344247347,1.0,34933.0,34902.0,1.0]
[1610344247548,1.0,34933.0,34902.0,1.11343]
[1610344247748,1.0,34933.0,34932.0,0.13632608]
[1610344247950,1.0,34933.0,34932.0,0.22215608]
[1610344248947,1.0,34933.0,34932.0,0.08583]
[1610344249348,1.0,34939.0,34932.0,1.08583]
[1610344249750,1.0,34939.0,34933.0,1.0]
[1610344250148,1.0,34939.0,34934.0,1.0]
[1610344250751,1.0,34939.0,34935.0,1.0]
[1610344251351,3.4798,34976.0,34933.0,1.0]
[1610344251749,0.13632608,34937.0,34934.0,1.0]
[1610344252151,0.07964,34967.0,34933.0,1.0]
[1610344252349,0.1556,34966.0,34933.0,1.0]
[1610344252550,0.1556,34966.0,34935.0,1.0]
[1610344252750,0.1556,34966.0,34934.0,1.0]
[1610344253153,0.1556,34966.0,34935.0,1.0]
[1610344253551,0.1556,34966.0,34933.0,1.0]
[1610344253752,0.07964,34967.0,34954.0,0.13632608]
[1610344253952,0.07964,34967.0,34950.0,0.11521]
[1610344254353,2.98934767,34971.0,34950.0,0.11521]
[1610344254552,3.1051541,34974.0,34955.0,1.0]
[1610344254752,3.1051541,34974.0,34950.0,0.11521]
[1610344254952,3.1051541,34974.0,34951.0,1.0]
[1610344255353,3.1051541,34974.0,34952.0,1.0]
[1610344255755,3.1051541,34974.0,34957.0,0.13632608]
[1610344256758,3.0688541,34974.0,34957.0,0.13632608]
[1610344257158,3.0688541,34974.0,34958.0,1.0]
[1610344257357,3.0688541,34974.0,34959.0,1.0]
[1610344257757,2.9984341,34974.0,34960.0,0.13632608]
[1610344257959,3.03816695,34975.0,34960.0,0.13632608]
[1610344258160,3.03816695,34975.0,34960.0,1.13632608]
[1610344258359,3.03816695,34975.0,34960.0,1.0]
[1610344258760,3.03816695,34975.0,34961.0,1.0]
[1610344259162,3.03816695,34975.0,34960.0,1.0]
[1610344259362,3.11676695,34975.0,34960.0,1.0]
[1610344259562,3.11676695,34975.0,34951.0,1.0]
[1610344259762,0.13632608,34952.0,34951.0,1.0]
[1610344259963,0.13632608,34952.0,34933.0,3.7658]
[1610344260765,0.13632608,34952.0,34934.0,1.0]
[1610344261166,0.13632608,34952.0,34935.0,1.0]
[1610344261364,1.0,34943.0,34935.0,1.0]
[1610344261564,1.0,34943.0,34933.0,3.7658]
[1610344261766,1.0,34943.0,34942.0,0.13632608]
[1610344262166,1.0,34943.0,34942.0,0.25080608]
[1610344262366,0.8296,34943.0,34942.0,0.25080608]
[1610344262568,0.7251,34943.0,34942.0,0.25080608]
[1610344262768,3.05181236,34951.0,34942.0,1.25080608]
[1610344262968,3.21310019,34972.0,34942.0,1.25080608]
[1610344263168,0.1556,34974.0,34942.0,1.25080608]
[1610344263368,0.1556,34974.0,34943.0,1.0]
[1610344263570,0.1556,34974.0,34944.0,1.0]
[1610344263871,0.1556,34974.0,34973.0,0.13632608]
[1610344264369,0.1556,34974.0,34973.0,1.0]
[1610344265268,3.22610768,34979.0,34973.0,1.0]
[1610344265669,3.03600768,34979.0,34973.0,1.0]
[1610344265868,0.9836,34981.0,34978.0,0.13632608]
[1610344266068,0.13632608,35011.0,34978.0,6.21558608]
[1610344266470,4.41231795,35014.0,34978.0,6.21558608]
[1610344267071,4.5593,35010.0,34978.0,6.21558608]
[1610344267271,6.8828,35011.0,34978.0,6.21558608]
[1610344267671,6.8743,35011.0,34978.0,10.11268608]
[1610344267871,6.8743,35011.0,35010.0,0.13632608]
[1610344268071,6.8743,35011.0,35007.0,0.08003]
[1610344268471,6.8743,35011.0,35007.0,0.06963]
[1610344268672,6.96403,35011.0,35007.0,0.01223]
[1610344268871,0.08973,35011.0,34978.0,0.07926]
[1610344269973,0.13632608,35006.0,34987.0,0.13632608]
[1610344270175,3.17616625,34991.0,34987.0,0.13632608]
[1610344270574,3.17689206,34996.0,34987.0,0.13632608]
[1610344270773,3.17689206,34996.0,34987.0,0.23906608]
[1610344270974,3.1821791,34999.0,34988.0,1.0]
[1610344271374,3.19339567,35007.0,34989.0,1.0]
[1610344271773,3.18269567,35007.0,34988.0,1.0]
[1610344271973,3.18269567,35007.0,35006.0,0.13632608]
[1610344272375,4.7983,35023.0,35006.0,0.22357608]
[1610344272775,3.35091051,35025.0,35006.0,0.22357608]
[1610344272976,3.35091051,35025.0,35007.0,1.0]
[1610344273176,3.36405035,35033.0,35007.0,1.0]
[1610344273577,3.36989178,35044.0,35008.0,1.0]
[1610344273977,3.36989178,35044.0,35043.0,0.13632608]
[1610344274280,3.3808549,35050.0,35043.0,0.24883608]
[1610344274478,3.3808549,35050.0,35043.0,1.24883608]
[1610344274678,3.38290885,35056.0,35044.0,1.0]
[1610344274877,3.37220885,35056.0,35044.0,1.0]
[1610344275078,3.37220885,35056.0,35045.0,1.0]
[1610344275479,0.9427,35058.0,35043.0,0.24883608]
[1610344275678,0.9427,35058.0,35046.0,1.0]
[1610344275879,0.13632608,35089.0,35057.0,0.13632608]
[1610344276078,0.13632608,35089.0,35057.0,0.23310608]
[1610344276278,3.57501966,35099.0,35057.0,0.09678]
[1610344276678,4.4624,35084.0,35057.0,0.09678]
[1610344277278,4.4624,35084.0,35058.0,1.0]
[1610344277681,4.4624,35084.0,35059.0,1.0]
[1610344277880,0.1556,35111.0,35074.0,1.0]
[1610344277881,1.0,35091.0,35074.0,1.0]
[1610344278080,1.0,35091.0,35074.0,1.08282]
[1610344278280,0.13632608,35089.0,35074.0,1.08282]
[1610344278679,0.13632608,35089.0,35075.0,1.0]
[1610344278880,1.0,35091.0,35075.0,1.0]
[1610344279581,1.0,35091.0,35084.0,0.01]
[1610344279783,0.10848,35108.0,35084.0,0.01]
[1610344279784,3.28424402,35115.0,35084.0,0.11503]
[1610344280182,0.13632608,35109.0,35102.0,0.13632608]
[1610344280384,0.13632608,35109.0,35085.0,1.0]
[1610344280585,0.13632608,35109.0,35086.0,1.0]
[1610344280783,0.12572608,35109.0,35086.0,1.0]
[1610344281183,0.12572608,35109.0,35091.0,0.02]
[1610344281386,0.12572608,35109.0,35091.0,0.10394]
[1610344281584,0.12572608,35109.0,35091.0,0.11394]
[1610344281784,0.12572608,35109.0,35092.0,1.0]
[1610344281986,3.5964,35121.0,35092.0,1.0]
[1610344282184,3.5964,35121.0,35101.0,0.13632608]
[1610344282185,0.13632608,35108.0,35101.0,0.13632608]
[1610344282485,3.5964,35121.0,35101.0,0.13632608]
[1610344282685,3.2785,35121.0,35101.0,0.13632608]
[1610344282886,3.27860538,35123.0,35102.0,1.0]
[1610344283285,3.27860538,35123.0,35101.0,0.25297608]
[1610344283485,3.37729538,35123.0,35103.0,1.0]
[1610344283885,3.36659538,35123.0,35121.0,1.0]
[1610344284287,0.09869,35123.0,35122.0,0.13632608]
[1610344284685,0.09869,35123.0,35122.0,1.13632608]
[1610344285086,1.0,35139.0,35122.0,1.13632608]
[1610344285488,1.0,35139.0,35123.0,1.0]
[1610344285889,0.13632608,35145.0,35123.0,1.0]
[1610344286288,0.13632608,35145.0,35124.0,1.0]
[1610344286489,0.13632608,35145.0,35124.0,1.07141]
[1610344286691,3.44411673,35182.0,35124.0,0.07141]
[1610344286889,0.3073,35179.0,35125.0,1.0]
[1610344287090,0.3073,35179.0,35126.0,1.0]
[1610344287290,0.1556,35178.0,35126.0,1.0]
[1610344287490,0.24848,35178.0,35126.0,1.0]
[1610344287689,0.24848,35178.0,35124.0,0.07141]
[1610344287889,0.24848,35178.0,35127.0,1.0]
[1610344288490,0.24848,35178.0,35125.0,1.0]
[1610344288890,0.24848,35178.0,35124.0,0.07141]
[1610344289090,0.09288,35178.0,35126.0,1.0]
[1610344289290,0.09288,35178.0,35127.0,0.2729]
[1610344289992,3.6633,35184.0,35127.0,0.2729]
[1610344290395,3.6506,35184.0,35183.0,0.13632608]
[1610344290595,0.3179,35192.0,35183.0,0.13632608]
[1610344291494,0.3179,35192.0,35183.0,0.22482608]
[1610344292297,0.3179,35192.0,35191.0,0.13632608]
[1610344292495,0.3179,35192.0,35191.0,0.22048608]
[1610344293696,0.3068,35192.0,35191.0,0.22048608]
[1610344294299,0.44312608,35192.0,35191.0,0.08416]
[1610344294498,0.44312608,35192.0,35171.0,0.09033]
[1610344294699,0.53661608,35192.0,35161.0,0.08176]
[1610344295702,0.53661608,35192.0,35132.0,0.2837]
[1610344296102,0.1556,35191.0,35132.0,0.2837]
[1610344297403,0.1556,35191.0,35133.0,1.0]
[1610344297801,1.0,35164.0,35133.0,0.9644]
[1610344298001,1.07904,35164.0,35128.0,1.0]
[1610344298201,1.07904,35164.0,35128.0,0.9501]
[1610344298403,0.13632608,35129.0,35128.0,0.9501]
[1610344298602,0.23760608,35129.0,35126.0,0.2751]
[1610344299002,0.23760608,35129.0,35126.0,0.228]
[1610344299204,0.23760608,35129.0,35127.0,1.0]
[1610344299604,0.23760608,35129.0,35126.0,0.228]
[1610344301704,0.23760608,35129.0,35100.0,1.0]
[1610344301905,6.0,35127.0,35098.0,1.0]
[1610344302304,0.13632608,35099.0,35098.0,1.0]
[1610344302507,0.24432608,35099.0,35061.0,1.0]
[1610344302707,0.24432608,35099.0,35090.0,1.0]
[1610344303106,0.24432608,35099.0,35061.0,1.0]
[1610344303107,0.24432608,35099.0,35078.0,1.0]
[1610344303707,0.24432608,35099.0,35079.0,1.0]
[1610344303908,1.0,35092.0,35079.0,1.0]
[1610344304307,1.13632608,35092.0,35078.0,1.0]
[1610344304707,1.13632608,35092.0,35088.0,1.0]
[1610344304908,1.13632608,35092.0,35080.0,1.0]
[1610344305307,1.13632608,35092.0,35088.0,1.0]
[1610344306208,1.13632608,35092.0,35078.0,1.0]
[1610344306710,1.13632608,35092.0,35059.0,1.0]
[1610344307910,0.13632608,35092.0,35051.0,1.0]
[1610344308110,0.13632608,35092.0,35037.0,1.0]
[1610344308310,0.13632608,35038.0,35037.0,1.0]
[1610344308711,0.13632608,35038.0,35035.0,0.13632608]
[1610344308911,0.10425,35052.0,35035.0,0.13632608]
[1610344309111,0.04955,35052.0,35036.0,1.0]
[1610344309511,0.04955,35052.0,35037.0,1.0]
[1610344309714,0.02925,35052.0,35037.0,1.0]
[1610344309912,0.108,35099.0,35036.0,1.0]
[1610344310112,3.1731197,35109.0,35036.0,1.0]
[1610344310313,3.1731197,35109.0,35062.0,0.13632608]
[1610344310712,3.21667872,35116.0,35062.0,0.13632608]
[1610344311312,3.23388551,35121.0,35062.0,0.13632608]
[1610344311513,3.23388551,35121.0,35063.0,1.0]
[1610344311713,3.23850693,35128.0,35063.0,1.07672]
[1610344311913,1.0,35093.0,35075.0,1.0]
[1610344312313,1.0,35093.0,35092.0,0.13632608]
[1610344313113,1.0,35093.0,35092.0,1.13632608]
[1610344313814,1.0,35106.0,35092.0,1.13632608]
[1610344314213,1.0,35106.0,35093.0,1.0]
[1610344314814,1.0,35106.0,35090.0,1.0]
[1610344315214,1.0,35106.0,35091.0,1.0]
[1610344315615,1.0,35106.0,35089.0,1.0]
[1610344315817,0.11016,35113.0,35088.0,1.0]
[1610344316215,0.11016,35113.0,35075.0,0.11171]
[1610344316414,0.13632608,35094.0,35075.0,0.24803608]
[1610344316815,0.13632608,35094.0,35076.0,1.0]
[1610344317516,0.13632608,35094.0,35077.0,1.0]
[1610344317918,1.0,35093.0,35078.0,1.0]
[1610344318418,1.0,35093.0,35079.0,1.0]
[1610344318818,1.0,35093.0,35075.0,1.11171]
[1610344319020,1.0,35093.0,35080.0,1.0]
[1610344319219,1.0,35093.0,35076.0,1.0]
[1610344319819,6.0,35077.0,35076.0,1.0]
[1610344320020,6.10138,35077.0,35076.0,1.0]
[1610344320421,6.23770608,35077.0,35076.0,1.0]
[1610344320622,6.23770608,35077.0,35056.0,0.2725]
[1610344321120,6.22710608,35077.0,35056.0,0.2725]
[1610344321322,6.22710608,35077.0,35076.0,1.0]
[1610344321522,0.23770608,35077.0,35076.0,1.0]
[1610344321922,0.23770608,35077.0,35056.0,0.2725]
[1610344322323,0.10138,35077.0,35056.0,0.2725]
[1610344322524,0.13632608,35081.0,35076.0,0.13632608]
[1610344322724,5.0,35087.0,35076.0,0.13632608]
[1610344322925,5.0,35087.0,35076.0,1.13632608]
[1610344323129,5.0,35087.0,35076.0,1.23096608]
[1610344323326,5.0,35087.0,35076.0,0.23096608]
[1610344323526,0.08719,35095.0,35077.0,1.0]
[1610344323726,3.33911014,35100.0,35077.0,1.0]
[1610344323925,3.33911014,35100.0,35067.0,1.0]
[1610344324126,3.45121014,35100.0,35067.0,1.0]
[1610344324528,3.45121014,35100.0,35070.0,0.13632608]
[1610344325129,3.45121014,35100.0,35071.0,1.0]
[1610344325429,1.0,35073.0,35071.0,1.0]
[1610344325630,1.11049,35073.0,35072.0,1.0]
[1610344326029,1.11049,35073.0,35071.0,1.0]
[1610344326630,1.11049,35073.0,35072.0,1.0]
[1610344326830,1.0,35073.0,35072.0,1.10584]
[1610344327031,1.0,35073.0,35072.0,1.24216608]
[1610344327230,1.0,35073.0,35072.0,0.24216608]
[1610344327430,3.3278039,35076.0,35072.0,1.24216608]
[1610344327629,3.34031124,35088.0,35072.0,6.24216608]
[1610344327829,3.34031124,35088.0,35072.0,7.24216608]
[1610344328029,3.35382111,35103.0,35072.0,7.24216608]
[1610344328230,3.35382111,35103.0,35073.0,1.0]
[1610344328430,3.36682023,35109.0,35073.0,1.0]
[1610344328932,3.36682023,35109.0,35108.0,0.13632608]
[1610344329134,3.36682023,35109.0,35108.0,0.24626608]
[1610344329732,3.36682023,35109.0,35108.0,1.24626608]
[1610344331032,4.1525,35110.0,35108.0,1.24626608]
[1610344331431,4.1525,35110.0,35109.0,1.0]
[1610344331832,4.1525,35110.0,35109.0,2.0]
[1610344332933,3.40767696,35120.0,35109.0,2.0]
[1610344333131,3.40767696,35120.0,35110.0,1.0]
[1610344333533,1.0,35136.0,35110.0,1.0]
[1610344333534,3.42510485,35121.0,35110.0,1.0]
[1610344333734,3.24510485,35121.0,35111.0,1.0]
[1610344334132,1.83811485,35121.0,35111.0,1.0]
[1610344334333,3.60391889,35144.0,35110.0,1.0]
[1610344334533,3.60391889,35144.0,35120.0,6.0]
[1610344334733,1.0,35177.0,35120.0,6.11097]
[1610344334734,3.62088756,35149.0,35120.0,6.11097]
[1610344334934,3.62918937,35154.0,35148.0,0.13632608]
[1610344335134,3.62918937,35154.0,35148.0,0.23388608]
[1610344335735,3.63464807,35159.0,35149.0,1.0]
[1610344335935,1.64174807,35159.0,35150.0,1.5]
[1610344336136,1.0,35177.0,35150.0,2.5]
[1610344336335,3.96947258,35204.0,35155.0,1.0]
[1610344336535,3.9775502,35215.0,35156.0,1.5]
[1610344336735,3.98700104,35224.0,35156.0,1.61578]
[1610344336935,8.31760104,35224.0,35156.0,1.61578]
[1610344337135,3.98621789,35231.0,35191.0,0.13632608]
[1610344337335,3.80521789,35231.0,35191.0,4.74482608]
[1610344337536,4.16392656,35264.0,35192.0,1.0]
[1610344337939,4.16392656,35264.0,35191.0,4.74482608]
[1610344338141,0.09224,35269.0,35193.0,1.0]
[1610344338438,0.09224,35269.0,35193.0,0.07253]
[1610344338638,0.03024,35269.0,35193.0,0.07253]
[1610344339239,0.03024,35269.0,35194.0,1.0]
[1610344339638,0.03024,35269.0,35239.0,0.97]
[1610344340040,0.03024,35269.0,35229.0,0.09847]
[1610344340439,0.03024,35269.0,35230.0,1.0]
[1610344340939,0.03024,35269.0,35231.0,1.0]
[1610344341339,0.13632608,35232.0,35231.0,1.0]
[1610344341539,0.20919608,35232.0,35230.0,1.0]
[1610344341940,0.07287,35232.0,35220.0,1.0]
[1610344342342,0.07287,35232.0,35221.0,1.0]
[1610344342541,0.10466,35243.0,35221.0,1.09454]
[1610344342741,0.10466,35243.0,35221.0,0.09454]
[1610344342941,0.03024,35269.0,35221.0,0.09454]
[1610344343142,0.1556,35275.0,35222.0,1.0]
[1610344343341,0.13632608,35252.0,35240.0,0.13632608]
[1610344343745,0.10872,35257.0,35240.0,0.13632608]
[1610344344144,0.10872,35257.0,35241.0,1.0]
[1610344344344,0.10872,35257.0,35242.0,1.0]
[1610344344743,0.09042,35257.0,35242.0,1.0]
[1610344345145,0.09042,35257.0,35241.0,1.0]
[1610344345345,1.0,35243.0,35241.0,1.0]
[1610344347347,0.09042,35257.0,35241.0,1.0]
[1610344347550,0.13632608,35250.0,35242.0,0.13632608]
[1610344347750,0.12522608,35250.0,35241.0,1.0]
[1610344348650,0.12522608,35250.0,35241.0,0.1348]
[1610344349251,0.12522608,35250.0,35241.0,0.1052]
[1610344349453,0.13632608,35242.0,35210.0,4.2617]
[1610344349651,0.01,35241.0,35210.0,4.2617]
[1610344350551,0.01,35241.0,35211.0,1.0]
[1610344350852,0.01,35231.0,35210.0,4.2617]
[1610344351052,0.12455,35231.0,35212.0,1.0]
[1610344351456,0.13632608,35213.0,35211.0,1.0]
[1610344351652,0.21428608,35213.0,35211.0,1.0]
[1610344352053,0.21428608,35213.0,35212.0,1.0]
[1610344352453,0.21428608,35213.0,35194.0,1.0]
[1610344352853,0.21428608,35213.0,35195.0,1.0]
[1610344353055,0.07796,35213.0,35195.0,1.0]
[1610344353254,0.07796,35213.0,35195.0,1.07098]
[1610344353455,0.12455,35231.0,35212.0,0.13632608]
[1610344354057,0.12455,35231.0,35213.0,1.0]
[1610344354255,0.12455,35231.0,35213.0,0.98]
[1610344354456,0.12455,35231.0,35214.0,1.0]
[1610344354855,0.12455,35231.0,35213.0,1.0]
[1610344355056,0.12455,35231.0,35214.0,0.09817]
[1610344355655,0.12455,35231.0,35215.0,1.0]
[1610344355855,0.13632608,35230.0,35215.0,1.0]
[1610344356156,0.13632608,35230.0,35214.0,0.09817]
[1610344356356,0.11662608,35230.0,35216.0,1.0]
[1610344356757,0.11662608,35230.0,35215.0,1.0]
[1610344357055,0.11662608,35230.0,35217.0,1.0]
[1610344357656,0.11662608,35230.0,35218.0,1.0]
[1610344357856,0.13632608,35224.0,35218.0,1.13632608]
[1610344358057,0.13632608,35224.0,35219.0,1.0]
[1610344358458,0.12455,35231.0,35220.0,1.0]
[1610344359456,0.12145,35231.0,35221.0,1.0]
[1610344360057,0.12145,35231.0,35230.0,0.13632608]
[1610344360256,0.0069,35231.0,35230.0,0.13632608]
[1610344361458,0.0069,35231.0,35225.0,0.075]
[1610344361661,0.0069,35231.0,35230.0,1.0]
[1610344362060,0.14322608,35231.0,35226.0,1.0]
[1610344362260,0.21958608,35231.0,35226.0,1.0]
[1610344362459,0.21268608,35231.0,35226.0,1.0]
[1610344362659,0.20888608,35231.0,35227.0,1.0]
[1610344362860,0.07636,35231.0,35227.0,1.0]
[1610344363059,0.07636,35231.0,35214.0,0.1167]
[1610344363260,0.07636,35231.0,35228.0,1.0]
[1610344363459,0.07636,35231.0,35215.0,1.0]
[1610344363859,0.07636,35231.0,35214.0,0.1167]
[1610344364260,0.07636,35231.0,35216.0,1.0]
[1610344364463,0.07636,35231.0,35215.0,1.0]
[1610344364661,0.07636,35231.0,35214.0,0.25302608]
[1610344364861,0.07636,35231.0,35217.0,1.0]
[1610344365260,6.0,35215.0,35211.0,4.54]
[1610344365861,6.0,35215.0,35212.0,1.0]
[1610344366062,6.0,35215.0,35211.0,4.54]
[1610344366265,0.13632608,35212.0,35211.0,4.54]
[1610344366463,0.13632608,35212.0,35211.0,5.54]
[1610344366663,4.19472608,35212.0,35211.0,1.0]
[1610344367064,4.19472608,35212.0,35165.0,3.5271]
[1610344367262,4.19472608,35212.0,35191.0,1.0]
[1610344367465,5.19472608,35212.0,35191.0,1.0]
[1610344367666,5.19472608,35212.0,35184.0,1.0]
[1610344367864,5.19472608,35212.0,35165.0,3.5271]
[1610344368264,0.13632608,35166.0,35165.0,3.5271]
[1610344368463,0.21467608,35166.0,35165.0,3.5271]
[1610344369666,0.13632608,35166.0,35165.0,3.5271]
[1610344370166,0.13632608,35166.0,35165.0,4.66342608]
[1610344370365,0.09016,35186.0,35165.0,1.13632608]
[1610344370564,0.09016,35186.0,35166.0,1.0]
[1610344370963,0.09016,35186.0,35167.0,1.0]
[1610344371164,3.39316052,35209.0,35167.0,1.0]
[1610344371368,3.39316052,35209.0,35166.0,1.0]
[1610344371566,4.0584,35212.0,35166.0,1.0]
[1610344371765,0.5215,35186.0,35166.0,1.0]
[1610344371965,0.59296,35186.0,35163.0,1.0]
[1610344372167,0.13632608,35164.0,35163.0,1.0]
[1610344372365,0.13632608,35164.0,35148.0,3.2496]
[1610344372767,0.13632608,35164.0,35149.0,1.0]
[1610344373366,0.13632608,35164.0,35150.0,1.0]
[1610344373569,0.13632608,35164.0,35149.0,1.0]
[1610344373767,0.08423,35171.0,35150.0,0.08094]
[1610344373967,0.59296,35186.0,35150.0,0.08094]
[1610344374167,0.59296,35186.0,35151.0,1.0]
[1610344374368,0.59296,35186.0,35163.0,0.13632608]
[1610344374567,0.59296,35186.0,35163.0,0.24553608]
[1610344375168,0.59296,35186.0,35164.0,1.0]
[1610344375369,0.59296,35186.0,35165.0,1.0]
[1610344375769,0.59296,35186.0,35150.0,0.08094]
[1610344376369,0.13632608,35151.0,35150.0,0.08094]
[1610344377070,0.13632608,35151.0,35150.0,1.08094]
[1610344378673,0.10407,35166.0,35150.0,1.08094]
[1610344378876,0.10676,35178.0,35150.0,1.08094]
[1610344379075,0.10676,35178.0,35151.0,1.0]
[1610344379474,0.10676,35178.0,35152.0,1.0]
[1610344379876,3.47038469,35199.0,35151.0,1.0]
[1610344380274,0.13632608,35159.0,35153.0,1.0]
[1610344380676,0.13632608,35159.0,35152.0,1.0]
[1610344380876,0.13632608,35159.0,35150.0,0.08094]
[1610344380877,0.13632608,35159.0,35151.0,1.0]
[1610344381478,1.13632608,35159.0,35153.0,1.0]
[1610344382077,1.0,35159.0,35152.0,1.0]
[1610344382277,0.13632608,35153.0,35150.0,0.08094]
[1610344382480,0.13632608,35153.0,35143.0,0.13632608]
[1610344382677,0.13632608,35153.0,35151.0,1.0]
[1610344382878,0.13632608,35153.0,35151.0,1.09132]
[1610344383080,0.13632608,35153.0,35151.0,0.09132]
[1610344383279,1.0,35159.0,35152.0,1.0]
[1610344383479,0.09268,35189.0,35152.0,1.0]
[1610344383480,5.0,35161.0,35152.0,1.0]
[1610344383680,5.0,35161.0,35153.0,1.0]
[1610344384079,5.0,35161.0,35152.0,1.0]
[1610344384280,0.13632608,35153.0,35152.0,1.0]
[1610344384480,5.0,35161.0,35153.0,1.0]
[1610344385084,5.0,35161.0,35152.0,1.0]
[1610344385479,0.11578,35181.0,35153.0,1.0]
[1610344385880,0.11578,35181.0,35154.0,1.0]
[1610344386179,3.65171659,35179.0,35154.0,1.0]
[1610344386580,3.65171659,35179.0,35152.0,1.0]
[1610344386779,3.59801659,35179.0,35152.0,1.0]
[1610344386979,3.59801659,35179.0,35153.0,1.0]
[1610344387280,3.49638331,35160.0,35153.0,1.0]
[1610344387480,3.49638331,35160.0,35152.0,1.0]
[1610344387681,3.50997529,35159.0,35152.0,1.0]
[1610344387879,3.50997529,35159.0,35153.0,1.0]
[1610344388280,3.50997529,35159.0,35155.0,0.13632608]
[1610344388780,3.50997529,35159.0,35156.0,1.0]
[1610344389081,3.50997529,35159.0,35155.0,0.13632608]
[1610344389480,3.50997529,35159.0,35157.0,1.0]
[1610344389683,0.13632608,35169.0,35156.0,1.0]
[1610344390184,0.13632608,35169.0,35157.0,1.0]
[1610344390382,0.13632608,35158.0,35157.0,1.0]
[1610344390582,0.13632608,35158.0,35156.0,1.0]
[1610344390982,0.13632608,35158.0,35155.0,0.13632608]
[1610344391382,1.0,35157.0,35156.0,1.0]
[1610344392484,1.0,35157.0,35153.0,1.0]
[1610344393084,1.0,35157.0,35143.0,1.0]
[1610344393285,0.00034935,35156.0,35133.0,1.0]
[1610344393484,6.0,35154.0,35134.0,1.0]
[1610344393684,3.61696277,35139.0,35134.0,1.0]
[1610344393884,3.61696277,35139.0,35098.0,0.28]
[1610344394284,3.61696277,35139.0,35135.0,1.0]
[1610344394485,0.13632608,35136.0,35135.0,1.0]
[1610344394685,0.13632608,35136.0,35129.0,1.0]
[1610344394885,0.13632608,35136.0,35125.0,0.09588]
[1610344395085,0.13632608,35136.0,35130.0,1.0]
[1610344395388,0.0003495,35135.0,35130.0,1.0]
[1610344395790,0.0003495,35135.0,35125.0,0.09588]
[1610344395989,0.0003495,35135.0,35128.0,1.0]
[1610344396390,0.13632608,35129.0,35128.0,1.0]
[1610344396590,0.13632608,35129.0,35117.0,0.11342]
[1610344396991,0.13632608,35129.0,35128.0,1.0]
[1610344397591,0.13632608,35129.0,35128.0,1.11365]
[1610344398190,3.61696277,35139.0,35128.0,1.11365]
[1610344398390,0.13632608,35129.0,35128.0,1.11365]
[1610344398590,3.40092608,35129.0,35128.0,0.11365]
[1610344398991,3.40092608,35129.0,35128.0,1.11365]
[1610344399392,3.2646,35129.0,35128.0,1.05935]
[1610344400393,3.40092608,35129.0,35128.0,1.05935]
[1610344407900,0.13632608,35129.0,35128.0,1.05935]
[1610344408902,3.49319808,35139.0,35128.0,1.05935]
[1610344409501,3.49319808,35139.0,35129.0,1.0]
[1610344409902,3.49319808,35139.0,35130.0,1.0]
[1610344410102,3.49319808,35139.0,35119.0,0.09867]
[1610344410303,3.59739808,35139.0,35131.0,1.0]
[1610344410503,0.13632608,35132.0,35131.0,1.0]
[1610344410905,0.13632608,35132.0,35120.0,1.0]
[1610344411303,0.08162608,35132.0,35120.0,1.0]
[1610344411504,6.08162608,35132.0,35111.0,1.0]
[1610344412103,6.08162608,35132.0,35099.0,1.0]
[1610344412303,6.08162608,35132.0,35072.0,0.2781]
[1610344412304,0.00034953,35131.0,35072.0,0.2781]
[1610344412503,0.13632608,35095.0,35089.0,0.13632608]
[1610344412703,0.13632608,35095.0,35072.0,0.2781]
[1610344412903,0.08796,35113.0,35072.0,0.2781]
[1610344413103,0.08796,35113.0,35094.0,1.0]
[1610344413304,0.00034975,35112.0,35095.0,1.0]
[1610344413904,0.00034975,35112.0,35095.0,0.5129]
[1610344414106,0.08796,35113.0,35088.0,1.0]
[1610344414520,0.08796,35113.0,35046.0,1.0]